{"text_format":"3","workbook":"xlsx","n_sheets":4,"sheets":["Сводка","Активы","Обязательства","Категории"],"not_rendered":{"defined_names":10},"read":"whole","date_system":"1900"}

{"sheet":"Сводка","index":0,"n_rows":12,"n_cols":4,"rows_kept":12}
[null,"Балансовый отчет"]
[null,null,{"$f":"\"FY-\"&YEAR(TODAY())-1","v":"FY-2016"},{"$f":"\"FY-\"&YEAR(TODAY())","v":"FY-2017"}]
[null,"Тип актива","Предыдущий год","Текущий год"]
[null,"Текущие активы",{"$f":"SUMIFS(Активы[Предыдущий год],Активы[Тип актива],Панель_мониторинга[[#This Row],[Тип актива]])+SUMIFS(Обязательства[Предыдущий год],Обязательства[Тип обязательства],Панель_мониторинга[[#This Row],[Тип актива]])","v":600},{"$f":"SUMIFS(Активы[Текущий год],Активы[Тип актива],Панель_мониторинга[[#This Row],[Тип актива]])+SUMIFS(Обязательства[Текущий год],Обязательства[Тип обязательства],Панель_мониторинга[[#This Row],[Тип актива]])","v":600}]
[null,"Основные средства",{"$f":"SUMIFS(Активы[Предыдущий год],Активы[Тип актива],Панель_мониторинга[[#This Row],[Тип актива]])+SUMIFS(Обязательства[Предыдущий год],Обязательства[Тип обязательства],Панель_мониторинга[[#This Row],[Тип актива]])","v":{"v":-100,"d":"-100 "}},{"$f":"SUMIFS(Активы[Текущий год],Активы[Тип актива],Панель_мониторинга[[#This Row],[Тип актива]])+SUMIFS(Обязательства[Текущий год],Обязательства[Тип обязательства],Панель_мониторинга[[#This Row],[Тип актива]])","v":{"v":-85,"d":"-85 "}}]
[null,"Другие активы",{"$f":"SUMIFS(Активы[Предыдущий год],Активы[Тип актива],Панель_мониторинга[[#This Row],[Тип актива]])+SUMIFS(Обязательства[Предыдущий год],Обязательства[Тип обязательства],Панель_мониторинга[[#This Row],[Тип актива]])","v":0},{"$f":"SUMIFS(Активы[Текущий год],Активы[Тип актива],Панель_мониторинга[[#This Row],[Тип актива]])+SUMIFS(Обязательства[Текущий год],Обязательства[Тип обязательства],Панель_мониторинга[[#This Row],[Тип актива]])","v":0}]
[null,"Текущие обязательства",{"$f":"SUMIFS(Активы[Предыдущий год],Активы[Тип актива],Панель_мониторинга[[#This Row],[Тип актива]])+SUMIFS(Обязательства[Предыдущий год],Обязательства[Тип обязательства],Панель_мониторинга[[#This Row],[Тип актива]])","v":500},{"$f":"SUMIFS(Активы[Текущий год],Активы[Тип актива],Панель_мониторинга[[#This Row],[Тип актива]])+SUMIFS(Обязательства[Текущий год],Обязательства[Тип обязательства],Панель_мониторинга[[#This Row],[Тип актива]])","v":350}]
[null,"Долгосрочные обязательства",{"$f":"SUMIFS(Активы[Предыдущий год],Активы[Тип актива],Панель_мониторинга[[#This Row],[Тип актива]])+SUMIFS(Обязательства[Предыдущий год],Обязательства[Тип обязательства],Панель_мониторинга[[#This Row],[Тип актива]])","v":0},{"$f":"SUMIFS(Активы[Текущий год],Активы[Тип актива],Панель_мониторинга[[#This Row],[Тип актива]])+SUMIFS(Обязательства[Текущий год],Обязательства[Тип обязательства],Панель_мониторинга[[#This Row],[Тип актива]])","v":0}]
[null,"Собственный акционерный капитал",{"$f":"SUMIFS(Активы[Предыдущий год],Активы[Тип актива],Панель_мониторинга[[#This Row],[Тип актива]])+SUMIFS(Обязательства[Предыдущий год],Обязательства[Тип обязательства],Панель_мониторинга[[#This Row],[Тип актива]])","v":0},{"$f":"SUMIFS(Активы[Текущий год],Активы[Тип актива],Панель_мониторинга[[#This Row],[Тип актива]])+SUMIFS(Обязательства[Текущий год],Обязательства[Тип обязательства],Панель_мониторинга[[#This Row],[Тип актива]])","v":350}]
[null,"Общая сумма активов",{"$f":"Активы[[#Totals],[Предыдущий год]]","v":500},{"$f":"Активы[[#Totals],[Текущий год]]","v":515}]
[null,"Общая сумма обязательств и общий акционерный капитал",{"$f":"Обязательства[[#Totals],[Предыдущий год]]","v":500},{"$f":"Обязательства[[#Totals],[Текущий год]]","v":700}]
[null,"Остаток",{"$f":"C10-C11","v":0},{"$f":"D10-D11","v":{"v":-185,"d":"-185 "}}]

{"sheet":"Активы","index":1,"n_rows":14,"n_cols":5,"rows_kept":14}
[null,"Активы"]
[{"$nulls":3},{"$f":"ФИНАНСОВЫЙ_ГОД","v":"FY-2016"},{"$f":"ФИНАНСОВЫЙ_ГОД_2","v":"FY-2017"}]
[null,"Тип актива","Описание","Предыдущий год","Текущий год"]
[null,"Текущие активы","Наличные",600,600]
[null,"Текущие активы","Инвестиции"]
[null,"Текущие активы","Запасы"]
[null,"Текущие активы","Дебиторская задолженность"]
[null,"Текущие активы","Авансированные средства"]
[null,"Основные средства","Недвижимость и оборудование"]
[null,"Основные средства","Улучшение арендованной собственности"]
[null,"Основные средства","Акции и другие инвестиции"]
[null,"Основные средства","За вычетом накопленной амортизации (отрицательное значение)",{"v":-100,"d":"-100 "},{"v":-85,"d":"-85 "}]
[null,"Другие активы","Благотворительные взносы"]
[null,"Общая сумма активов",null,{"$f":"SUBTOTAL(109,Активы[Предыдущий год])","v":500},{"$f":"SUBTOTAL(109,Активы[Текущий год])","v":515}]

{"sheet":"Обязательства","index":2,"n_rows":12,"n_cols":5,"rows_kept":12}
[null,"Обязательства"]
[{"$nulls":3},{"$f":"ФИНАНСОВЫЙ_ГОД","v":"FY-2016"},{"$f":"ФИНАНСОВЫЙ_ГОД_2","v":"FY-2017"}]
[null,"Тип обязательства","Описание","Предыдущий год","Текущий год"]
[null,"Текущие обязательства","Кредиторская задолженность",null,350]
[null,"Текущие обязательства","Начисленная заработная плата"]
[null,"Текущие обязательства","Задолженность по заработной плате",500]
[null,"Текущие обязательства","Налоги к оплате"]
[null,"Текущие обязательства","Доходы будущих периодов"]
[null,"Долгосрочные обязательства","Ипотека, подлежащая погашению"]
[null,"Собственный акционерный капитал","Инвестиционный капитал",null,350]
[null,"Собственный акционерный капитал","Полученная прибыль к распределению"]
[null,"Общая сумма обязательств и общий акционерный капитал",null,{"$f":"SUBTOTAL(109,Обязательства[Предыдущий год])","v":500},{"$f":"SUBTOTAL(109,Обязательства[Текущий год])","v":700}]

{"sheet":"Категории","index":3,"n_rows":9,"n_cols":2,"rows_kept":9}
[null,"Категории"]
[]
[null,"Категории"]
[null,"Текущие активы"]
[null,"Основные средства"]
[null,"Другие активы"]
[null,"Текущие обязательства"]
[null,"Долгосрочные обязательства"]
[null,"Собственный акционерный капитал"]